bitfinex/quotes_BTCUSD_20240803
["timestamp","ask_amount","ask_price","bid_price","bid_amount"]
[1722648955420,0.01626862,61260.0,61259.0,0.15945924]
[1722648956035,0.01626862,61260.0,61259.0,0.15845924]
[1722648956329,0.01626862,61260.0,61259.0,0.15945924]
[1722648956557,0.01626862,61260.0,61259.0,0.15845924]
[1722648956764,0.01626862,61260.0,61259.0,0.15745924]
[1722648956906,0.01626862,61260.0,61259.0,0.15845924]
[1722648957579,0.50068193,61261.0,61259.0,0.15945924]
[1722648957752,0.50068193,61261.0,61260.0,0.15745924]
[1722648960358,0.50068193,61261.0,61260.0,0.15845924]
[1722648960795,0.50068193,61261.0,61260.0,0.15945924]
[1722648962849,0.64028193,61261.0,61260.0,0.15945924]
[1722648963056,0.71802252,61261.0,61260.0,0.002]
[1722648963677,0.71802252,61261.0,61248.0,0.1]
[1722648963927,0.0625,61259.0,61249.0,0.15745924]
[1722648964125,0.23268207,61258.0,61249.0,0.15745924]
[1722648964262,0.07875194,61253.0,61249.0,0.15745924]
[1722648964466,0.0625,61250.0,61249.0,0.15745924]
[1722648964707,0.12562536,61250.0,61249.0,0.15745924]
[1722648965082,0.30969976,61250.0,61240.0,0.1]
[1722648965283,0.06312536,61249.0,61241.0,0.15745924]
[1722648965489,0.06155097,61248.0,61241.0,0.15745924]
[1722648965742,0.00157439,61247.0,61241.0,0.15745924]
[1722648966372,0.00157439,61249.0,61241.0,0.15745924]
[1722648966578,0.07752429,61246.0,61242.0,0.07875194]
[1722648966775,0.0625,61250.0,61243.0,0.15745924]
[1722648966911,0.01606404,61245.0,61244.0,0.00326539]
[1722648967120,0.014,61247.0,61244.0,0.15745924]
[1722648967318,0.014,61247.0,61245.0,0.16072451]
[1722648967519,0.001,61249.0,61245.0,0.16072451]
[1722648967720,0.014,61246.0,61245.0,0.16072451]
[1722648968563,0.014,61246.0,61245.0,0.15745924]
[1722648968965,0.014,61246.0,61245.0,0.25745924]
[1722648969371,0.014,61246.0,61245.0,0.26072435]
[1722648969788,0.001,61246.0,61245.0,0.34247629]
[1722648969997,0.001,61246.0,61245.0,0.35647629]
[1722648970196,0.002,61246.0,61245.0,0.27772435]
[1722648970412,0.002,61246.0,61245.0,0.35321118]
[1722648970612,0.002,61246.0,61245.0,0.356476]
[1722648970816,0.001,61246.0,61245.0,0.342476]
[1722648971325,0.011,61246.0,61245.0,0.26145924]
[1722648971680,0.01,61246.0,61245.0,0.25845924]
[1722648972087,0.01,61246.0,61245.0,0.25945924]
[1722648972487,0.01,61246.0,61245.0,0.25845924]
[1722648972894,0.01,61246.0,61245.0,0.25945924]
[1722648973465,0.01,61246.0,61245.0,0.26272445]
[1722648973758,0.01,61246.0,61245.0,0.25945924]
[1722648975314,0.01,61246.0,61245.0,0.15945924]
[1722648975630,0.0708,61246.0,61245.0,0.15945924]
[1722648975969,0.1465,61246.0,61245.0,0.002]
[1722648976111,0.1625531,61246.0,61245.0,0.002]
[1722648976792,0.22401771,61246.0,61245.0,0.002]
[1722648977013,0.22401397,61246.0,61245.0,0.002]
[1722648977418,1.10257896,61246.0,61245.0,0.002]
[1722648977542,1.36821886,61246.0,61245.0,0.002]
[1722648977747,1.5088914,61246.0,61245.0,0.002]
[1722648978091,0.0608,61245.0,61230.0,0.000913]
[1722648978264,0.04837541,61241.0,61231.0,0.15745924]
[1722648978534,0.06303526,61240.0,61231.0,0.15745924]
[1722648978708,0.06146087,61239.0,61231.0,0.15745924]
[1722648978949,0.00157439,61238.0,61231.0,0.15745924]
[1722648979278,0.1365,61236.0,61231.0,0.15745924]
[1722648979429,0.00157439,61235.0,61231.0,0.15745924]
[1722648979578,0.01751458,61235.0,61231.0,0.15745924]
[1722648979955,0.01751458,61235.0,61231.0,0.15845924]
[1722648981197,0.01751458,61235.0,61231.0,0.16445924]
[1722648981399,0.01851458,61235.0,61231.0,0.17145924]
[1722648981616,0.07875194,61232.0,61231.0,0.007]
[1722648981852,0.06290147,61232.0,61231.0,0.014]
[1722648982072,0.06290147,61232.0,61231.0,0.007]
[1722648982073,0.02125359,61232.0,61231.0,0.007]
[1722648982381,0.00157439,61234.0,61231.0,0.17145924]
[1722648982584,0.01594019,61232.0,61231.0,0.014]
[1722648982719,0.00357439,61235.0,61231.0,0.014]
[1722648982946,0.00257439,61235.0,61231.0,0.16445924]
[1722648983267,0.001,61232.0,61231.0,0.16445924]
[1722648983406,0.001,61232.0,61231.0,0.17845924]
[1722648983611,0.001,61232.0,61231.0,0.16445924]
[1722648984019,0.001,61232.0,61231.0,0.021]
[1722648984218,0.001,61232.0,61231.0,0.007]
[1722648984415,0.00257439,61235.0,61230.0,0.000913]
[1722648984640,0.001,61232.0,61231.0,0.028]
[1722648985182,0.001,61232.0,61231.0,0.014]
[1722648985927,0.001,61232.0,61231.0,0.17145924]
[1722648986133,0.00257439,61235.0,61231.0,0.17145924]
[1722648986134,0.00157439,61235.0,61231.0,0.15745924]
[1722648986650,0.00257439,61235.0,61231.0,0.15745924]
[1722648987027,0.001,61232.0,61231.0,0.014]
[1722648987237,0.002,61232.0,61231.0,0.028]
[1722648987600,0.002,61232.0,61231.0,0.18545924]
[1722648987818,0.002,61232.0,61231.0,0.19845924]
[1722648987972,0.001,61232.0,61231.0,0.17145924]
[1722648988791,0.00157439,61240.0,61231.0,0.15745924]
[1722648989035,0.001,61235.0,61232.0,0.15745924]
[1722648989297,0.00157439,61234.0,61232.0,0.15745924]
[1722648989728,0.00157439,61234.0,61230.0,0.000913]
[1722648989729,0.122473,61238.0,61230.0,0.000913]
[1722648989943,0.001,61232.0,61231.0,0.17145924]
[1722648990381,0.001,61235.0,61232.0,0.013]
[1722648990609,0.00157439,61234.0,61232.0,0.013]
[1722648990818,0.001,61235.0,61232.0,0.013]
[1722648991181,0.00157439,61234.0,61232.0,0.013]
[1722648992564,0.00257439,61234.0,61232.0,0.027]
[1722648992898,0.00257439,61234.0,61232.0,0.014]
[1722648993499,0.001,61234.0,61232.0,0.014]
[1722648993613,0.00157439,61233.0,61232.0,0.014]
[1722648994019,0.001,61234.0,61232.0,0.014]
[1722648994224,0.00157439,61233.0,61232.0,0.014]
[1722648995335,0.00157439,61233.0,61230.0,0.000913]
[1722648995557,0.02197563,61233.0,61232.0,0.014]
[1722648995765,0.02197563,61233.0,61232.0,0.028]
[1722648995766,0.001,61233.0,61232.0,0.028]
[1722648995974,0.02297563,61233.0,61232.0,0.028]
[1722648996174,0.001,61233.0,61232.0,0.014]
[1722648996321,0.02197563,61233.0,61232.0,0.014]
[1722648996526,0.02297563,61233.0,61232.0,0.014]
[1722648996729,0.002,61233.0,61232.0,0.014]
[1722648997157,0.001,61233.0,61232.0,0.014]
[1722648997388,0.02196697,61233.0,61232.0,0.014]
[1722648997703,0.001,61233.0,61232.0,0.014]
[1722648998265,0.002,61233.0,61232.0,0.028]
[1722648998469,0.02296697,61233.0,61232.0,0.028]
[1722649000419,0.23282241,61233.0,61232.0,0.028]
[1722649000619,0.17164917,61233.0,61232.0,0.028]
[1722649000820,0.08415002,61233.0,61232.0,0.028]
[1722649001024,0.02297678,61233.0,61232.0,0.028]
[1722649001413,0.08419935,61233.0,61232.0,0.028]
[1722649002372,0.02297678,61233.0,61232.0,0.028]
[1722649002554,0.25378235,61233.0,61232.0,0.028]
[1722649002756,0.08414537,61233.0,61232.0,0.028]
[1722649003718,0.25377716,61233.0,61232.0,0.028]
[1722649005087,0.11043738,61233.0,61232.0,0.28545924]
[1722649005299,0.11043738,61233.0,61221.0,0.01]
[1722649005300,0.01,61185.0,61184.0,0.13043307]
[1722649005555,0.01,61185.0,61169.0,0.00919]
[1722649005556,0.304719,61165.0,61148.0,0.12209657]
[1722649005742,0.122639,61155.0,61119.0,0.12209657]
[1722649005944,0.122639,61155.0,61105.0,0.09755952]
[1722649005945,1.36976792,61155.0,61105.0,0.09755952]
[1722649006147,1.36976792,61155.0,61093.0,0.0642]
[1722649006148,0.703113,61139.0,61138.0,0.78829365]
[1722649006360,2.08981869,61139.0,61138.0,0.31767693]
[1722649006583,0.378151,61116.0,61084.0,0.0642]
[1722649006787,0.635585,61116.0,61084.0,0.0642]
[1722649006999,0.75595519,61116.0,61091.0,0.143]
[1722649007229,1.07241585,61116.0,61087.0,0.0002561]
[1722649007436,1.43899354,61116.0,61087.0,0.0002561]
[1722649007642,0.01,61105.0,61087.0,0.0002561]
[1722649007813,0.01,61093.0,61087.0,0.0002561]
[1722649008031,0.01,61088.0,61087.0,0.0002561]
[1722649008260,0.3815864,61088.0,61087.0,0.0002561]
[1722649008471,0.82404956,61088.0,61087.0,0.0002561]
[1722649008674,0.27549632,61088.0,61087.0,0.0002561]
[1722649008875,0.01972332,61088.0,61087.0,0.0002561]
[1722649009074,0.02972332,61088.0,61087.0,0.0002561]
[1722649009341,0.30868916,61088.0,61087.0,0.0002561]
[1722649009523,0.58050256,61088.0,61087.0,0.0002561]
[1722649009768,0.69450256,61088.0,61087.0,0.0002561]
[1722649009970,0.14245692,61088.0,61087.0,0.0002561]
[1722649010180,0.01,61083.0,61069.0,0.2077]
[1722649010387,0.01,61083.0,61070.0,0.15745924]
[1722649010810,0.03,61088.0,61071.0,0.05243508]
[1722649010811,0.01645692,61082.0,61071.0,0.05243508]
[1722649011034,0.1,61095.0,61079.0,0.2077]
[1722649011035,0.47251164,61080.0,61079.0,0.2077]
[1722649011260,0.01,61081.0,61079.0,0.36515924]
[1722649011457,0.002,61091.0,61071.0,0.04916069]
[1722649011458,0.01,61075.0,61071.0,0.04916069]
[1722649011698,0.01,61073.0,61071.0,0.04916069]
[1722649012164,0.01,61072.0,61071.0,0.04916069]
[1722649012402,0.01,61068.0,61067.0,0.0643]
[1722649012613,0.47451164,61077.0,61056.0,0.0001]
[1722649012614,0.01,61057.0,61056.0,0.0001]
[1722649012835,0.378508,61057.0,61056.0,0.0001]
[1722649013023,0.66491372,61057.0,61056.0,0.0001]
[1722649013247,1.16804496,61057.0,61056.0,0.0001]
[1722649013448,1.16804496,61057.0,61037.0,0.0815]
[1722649013449,0.01,61027.0,61018.0,0.0643]
[1722649013625,0.02,61053.0,61012.0,0.04916069]
[1722649013626,0.0020055,61026.0,61012.0,0.04916069]
[1722649013836,0.01679259,61026.0,61005.0,0.0643]
[1722649014041,0.147898,61026.0,61005.0,0.0643]
[1722649014241,0.61510759,61026.0,61005.0,0.0643]
[1722649014472,1.17733099,61026.0,60994.0,0.0136709]
[1722649015013,1.1966033,61026.0,60994.0,0.0136709]
[1722649015214,1.1966033,61026.0,61025.0,0.0079708]
[1722649015615,1.1866033,61026.0,61025.0,0.0079708]
[1722649015838,1.1866033,61026.0,60994.0,0.0136709]
[1722649015839,0.002,61000.0,60994.0,0.0136709]
[1722649016265,0.12296,60995.0,60994.0,0.0136709]
[1722649016467,0.62834024,60995.0,60994.0,0.0136709]
[1722649016800,0.73052092,60995.0,60994.0,0.01245093]
[1722649017051,0.002,60976.0,60973.0,0.0001]
[1722649017245,0.245961,60986.0,60973.0,0.0001]
[1722649017246,0.1,60985.0,60973.0,0.0001]
[1722649017477,0.002,60975.0,60974.0,0.15745924]
[1722649017645,0.002,60974.0,60973.0,0.0001]
[1722649018616,0.01290908,60974.0,60973.0,0.0001]
[1722649019280,0.13591208,60974.0,60973.0,0.0001]
[1722649019507,0.48191808,60974.0,60973.0,0.0001]
[1722649019716,0.50491808,60974.0,60973.0,0.0001]
[1722649019939,0.75092408,60974.0,60973.0,0.0001]
[1722649020157,0.66237732,60974.0,60973.0,0.0001]
[1722649020375,0.66237732,60974.0,60947.0,0.07875194]
[1722649020376,0.66237732,60974.0,60950.0,0.00025]
[1722649020377,0.627095,60966.0,60950.0,0.00025]
[1722649020574,0.002,60966.0,60950.0,0.00025]
[1722649020826,0.23565816,60966.0,60950.0,0.00025]
[1722649021034,0.25945924,60966.0,60950.0,0.00025]
[1722649021228,0.2930984,60966.0,60950.0,0.00025]
[1722649021461,0.4161174,60966.0,60950.0,0.00025]
[1722649021734,0.13563916,60966.0,60951.0,0.07875194]
[1722649021874,0.13563916,60966.0,60952.0,0.07875194]
[1722649022082,0.01263916,60966.0,60952.0,0.07875194]
[1722649022285,0.01063916,60966.0,60965.0,0.23387214]
[1722649022505,0.002,60979.0,60965.0,0.23387214]
[1722649022705,0.002,60989.0,60973.0,0.2077]
[1722649022980,0.067652,60995.0,60984.0,0.07875194]
[1722649023181,0.002,60983.0,60974.0,0.15745924]
[1722649023476,0.002,60983.0,60967.0,0.04916069]
[1722649023675,0.002,60983.0,60973.0,0.07875194]
[1722649023887,0.002,60986.0,60980.0,0.07875194]
[1722649024175,0.47251164,60993.0,60973.0,0.28645194]
[1722649024176,0.002,60980.0,60973.0,0.28645194]
[1722649024374,0.002,60980.0,60974.0,0.07875194]
[1722649024513,0.002,60976.0,60974.0,0.07875194]
[1722649024714,0.002,60979.0,60973.0,0.15745924]
[1722649024961,0.002,60982.0,60974.0,0.07875194]
[1722649025162,0.47251164,60993.0,60974.0,0.07875194]
[1722649025163,0.001,60986.0,60981.0,0.07875194]
[1722649025369,0.47251164,60993.0,60983.0,0.2077]
[1722649025580,0.47251164,60993.0,60984.0,0.15745924]
[1722649025747,0.00911273,60992.0,60984.0,0.15745924]
[1722649026127,0.002,60985.0,60984.0,0.15745924]
[1722649027233,0.002,60983.0,60981.0,0.032]
[1722649027780,0.124985,60983.0,60981.0,0.032]
[1722649027982,0.13211273,60982.0,60981.0,0.032]
[1722649028617,0.00911273,60982.0,60981.0,0.18945924]
[1722649028801,0.00911273,60982.0,60981.0,0.39715924]
[1722649028979,0.002,60997.0,60982.0,0.0815]
[1722649029182,0.47251164,60987.0,60983.0,0.15745924]
[1722649029377,0.00911273,60996.0,60983.0,0.15745924]
[1722649029577,0.002,60997.0,60983.0,0.15745924]
[1722649029778,0.00911273,60995.0,60983.0,0.15745924]
[1722649030022,0.009113,61002.0,60986.0,0.0643]
[1722649030023,0.002,60993.0,60986.0,0.0643]
[1722649030218,0.002,60987.0,60986.0,0.0643]
[1722649031138,0.07875194,61001.0,60986.0,0.22175924]
[1722649031139,0.002,60994.0,60986.0,0.22175924]
[1722649031344,0.002,60990.0,60987.0,0.15745924]
[1722649031550,0.002,60988.0,60986.0,0.0643]
[1722649031754,0.06564,61009.0,60986.0,0.0643]
[1722649031755,0.06564,61009.0,60989.0,0.0997]
[1722649031957,0.06564,61009.0,61005.0,0.07875194]
[1722649032185,0.47251164,61018.0,61006.0,0.0615]
[1722649032391,0.47451164,61018.0,61007.0,0.0797]
[1722649032591,0.002,61014.0,61007.0,0.0797]
[1722649032805,0.00918702,61017.0,61008.0,0.15745924]
[1722649032955,0.002,61018.0,61014.0,0.07875194]
[1722649033155,0.01705276,61038.0,61014.0,0.07875194]
[1722649033156,0.002,61025.0,61015.0,0.15745924]
[1722649033423,0.01705276,61038.0,61015.0,0.15745924]
[1722649033424,0.47451164,61024.0,61015.0,0.15745924]
[1722649033621,0.002,61020.0,61015.0,0.15745924]
[1722649033833,0.002,61021.0,61015.0,0.15745924]
[1722649034228,0.002,61016.0,61015.0,0.15745924]
[1722649034430,0.002,61014.0,61007.0,0.0797]
[1722649034681,0.245786,61029.0,61007.0,0.0797]
[1722649034682,0.002,61011.0,61007.0,0.0797]
[1722649034887,0.002,61008.0,61007.0,0.0797]
[1722649035321,0.002,61008.0,60994.0,0.0615]
[1722649035433,0.01118702,61008.0,60995.0,0.15745924]
[1722649035636,0.01118702,61008.0,60981.0,0.0935]
[1722649035637,0.002,60993.0,60981.0,0.0935]
[1722649035835,0.002,60993.0,60982.0,0.15745924]
[1722649036036,0.002,60987.0,60982.0,0.15745924]
[1722649036502,0.002,60990.0,60982.0,0.15745924]
[1722649036714,0.002,60983.0,60982.0,0.15745924]
[1722649036917,0.002,60982.0,60981.0,0.0935]
[1722649037128,0.002,60982.0,60981.0,0.032]
[1722649037757,0.00945665,60982.0,60981.0,0.032]
[1722649037960,0.002,60989.0,60981.0,0.18945924]
[1722649038164,0.002,60989.0,60982.0,0.23621118]
[1722649038390,0.00321553,60994.0,60982.0,0.23621118]
[1722649038391,0.002,60986.0,60982.0,0.23621118]
[1722649038590,0.00164114,60994.0,60990.0,0.07875194]
[1722649038798,0.00164114,60994.0,60983.0,0.0797]
[1722649038799,0.00164114,60994.0,60991.0,0.23621118]
[1722649039000,0.00164114,60994.0,60992.0,0.0615]
[1722649039203,0.00164114,60994.0,60993.0,0.15745924]
[1722649040345,0.00164114,60994.0,60993.0,0.16745924]
[1722649040554,0.002,61009.0,60996.0,0.04916069]
[1722649040748,0.47251164,61004.0,60997.0,0.15745924]
[1722649040955,0.002,61007.0,60997.0,0.15745924]
[1722649041355,0.00157439,61022.0,60999.0,0.07875194]
[1722649041356,0.002,61013.0,60999.0,0.07875194]
[1722649041606,0.002,61011.0,61000.0,0.15745924]
[1722649041768,0.17024025,61010.0,61000.0,0.15745924]
[1722649041976,0.002,61001.0,61000.0,0.15745924]
[1722649042404,0.172254,61001.0,61000.0,0.15745924]
[1722649042644,0.002,60997.0,60994.0,0.0797]
[1722649042856,0.002,60997.0,60995.0,0.15745924]
[1722649042857,0.30647783,60996.0,60995.0,0.15745924]
[1722649043057,0.30647925,60996.0,60995.0,0.15745924]
[1722649043255,0.3159359,60996.0,60995.0,0.15745924]
[1722649043733,0.31793949,60996.0,60995.0,0.15745924]
[1722649044086,0.002,60993.0,60987.0,0.04916069]
[1722649044353,0.002,60993.0,60980.0,0.01]
[1722649044354,0.002,60990.0,60986.0,0.0797]
[1722649044522,0.002,60990.0,60987.0,0.15745924]
[1722649044523,0.30648284,60989.0,60987.0,0.15745924]
[1722649044674,0.17029788,60988.0,60987.0,0.15745924]
[1722649044884,0.30653618,60988.0,60987.0,0.15745924]
[1722649045093,0.14569685,60988.0,60987.0,0.15745924]
[1722649045301,0.14569685,60988.0,60983.0,0.0615]
[1722649045302,0.3159971,60988.0,60983.0,0.0615]
[1722649045503,0.56202725,60987.0,60983.0,0.21895924]
[1722649045702,0.002,60984.0,60983.0,0.21895924]
[1722649045925,0.30855951,60984.0,60983.0,0.21895924]
[1722649046424,0.31783305,60984.0,60983.0,0.21895924]
[1722649047057,0.38596216,60984.0,60983.0,0.21895924]
[1722649047462,0.31783305,60984.0,60983.0,0.15745924]
[1722649047673,0.31583305,60984.0,60983.0,0.15745924]
[1722649048080,0.31583305,60984.0,60976.0,0.1412]
[1722649048081,0.14552506,60984.0,60976.0,0.1412]
[1722649048436,0.37470166,60983.0,60976.0,0.1412]
[1722649048570,0.37470166,60982.0,60976.0,0.1412]
[1722649048771,0.30657215,60982.0,60981.0,0.18945924]
[1722649048978,0.17958863,60982.0,60981.0,0.18945924]
[1722649049985,0.17958863,60982.0,60981.0,0.28945924]
[1722649049986,0.1795484,60982.0,60981.0,0.28945924]
[1722649050224,0.1795484,60982.0,60981.0,0.18945924]
[1722649051300,0.1795484,60982.0,60981.0,0.23861993]
[1722649052752,0.31578435,60982.0,60981.0,0.23861993]
[1722649052957,0.31578435,60982.0,60981.0,0.18945924]
[1722649053441,0.31778435,60982.0,60981.0,0.18945924]
[1722649053652,0.30851358,60982.0,60981.0,0.18945924]
[1722649053852,0.31782419,60982.0,60981.0,0.18945924]
[1722649054067,0.38594671,60982.0,60981.0,0.18945924]
[1722649054244,0.38394671,60982.0,60981.0,0.18945924]
[1722649054843,0.31586114,60982.0,60981.0,0.18945924]
[1722649055048,0.38398348,60982.0,60981.0,0.18945924]
[1722649055248,0.01131061,60982.0,60981.0,0.18945924]
[1722649055798,0.23842879,60982.0,60981.0,0.18945924]
[1722649055909,0.10370293,60982.0,60981.0,0.34189903]
[1722649056115,0.0281147,60982.0,60981.0,0.49781993]
[1722649056316,0.002,61000.0,60992.0,0.04916069]
[1722649056519,0.002,61000.0,60993.0,0.15745924]
[1722649056719,0.00771177,60999.0,60993.0,0.15745924]
[1722649056933,0.47251164,61006.0,60993.0,0.15745924]
[1722649056934,0.002,61000.0,60993.0,0.15745924]
[1722649057137,0.47251164,61006.0,60993.0,0.15745924]
[1722649057138,0.00771177,60998.0,60993.0,0.15745924]
[1722649057383,0.00283,61011.0,60995.0,0.0616]
[1722649057579,0.00283,61011.0,60997.0,0.0776]
[1722649057580,0.47251164,61007.0,60997.0,0.0776]
[1722649057787,0.002,61010.0,60998.0,0.1607376]
[1722649058006,0.07581214,61006.0,60998.0,0.1607376]
[1722649058206,0.13620074,61005.0,60998.0,0.1607376]
[1722649058406,0.13620105,61004.0,60998.0,0.1607376]
[1722649058612,0.13620105,61003.0,60998.0,0.23948954]
[1722649058817,0.13620105,61003.0,61000.0,0.25686069]
[1722649059024,0.14391282,61002.0,61001.0,0.15745924]
[1722649060068,0.14391282,61002.0,60997.0,0.0776]
[1722649060069,0.002,61000.0,60997.0,0.0776]
[1722649060270,0.00083,61011.0,60991.0,0.04916069]
[1722649060271,0.07009806,60999.0,60991.0,0.04916069]
[1722649060474,0.07009806,60999.0,60981.0,0.042]
[1722649060475,0.21202255,60998.0,60987.0,0.0616]
[1722649060724,0.002,60987.0,60986.0,0.0776]
[1722649060929,0.13821272,60987.0,60986.0,0.23505924]
[1722649061148,0.21402255,60987.0,60986.0,0.23505924]
[1722649061303,0.21402255,60987.0,60986.0,0.15745924]
[1722649062142,0.002,60982.0,60981.0,0.032]
[1722649062319,0.002,60982.0,60981.0,0.18945924]
[1722649062320,0.13821272,60982.0,60981.0,0.18945924]
[1722649062526,0.20631078,60982.0,60981.0,0.18945924]
[1722649062728,0.21402255,60982.0,60981.0,0.18945924]
[1722649063953,0.21409002,60982.0,60981.0,0.18945924]
[1722649064697,0.21209002,60982.0,60981.0,0.18945924]
[1722649064954,0.21209002,60982.0,60981.0,0.032]
[1722649065556,0.46959286,60982.0,60981.0,0.032]
[1722649066170,1.16820033,60982.0,60981.0,0.032]
[1722649066404,1.73273357,60982.0,60981.0,0.032]
[1722649066549,2.06538455,60982.0,60981.0,0.02570791]
[1722649066712,0.625015,60974.0,60965.0,0.0121129]
[1722649066915,1.28397565,60974.0,60973.0,0.010113]
[1722649067125,1.70033734,60974.0,60973.0,0.010113]
[1722649067355,1.03929452,60974.0,60973.0,0.010113]
[1722649067564,0.86664321,60974.0,60973.0,0.010113]
[1722649067765,0.64140223,60974.0,60973.0,0.010113]
[1722649067946,0.70955614,60974.0,60973.0,0.010113]
[1722649068162,0.60955614,60974.0,60973.0,0.010113]
[1722649068368,0.46975614,60974.0,60973.0,0.010113]
[1722649068548,0.99622438,60974.0,60973.0,0.010113]
[1722649068746,1.61123638,60974.0,60973.0,0.010113]
[1722649069154,1.63092022,60974.0,60973.0,0.010113]
[1722649069582,1.72347853,60974.0,60973.0,0.010113]
[1722649069786,1.85916754,60974.0,60973.0,0.010113]
[1722649070039,1.54667253,60974.0,60973.0,0.010113]
[1722649070339,0.99438601,60974.0,60973.0,0.010113]
[1722649070543,1.38631156,60974.0,60973.0,0.010113]
[1722649070755,1.50457252,60974.0,60973.0,0.010113]
[1722649071106,1.50456167,60974.0,60973.0,0.010113]
[1722649071310,1.2489689,60974.0,60973.0,0.010113]
[1722649071535,1.2589689,60974.0,60973.0,0.010113]
[1722649071746,1.51457091,60974.0,60973.0,0.010113]
[1722649071919,1.50457091,60974.0,60973.0,0.010113]
[1722649072122,1.2489689,60974.0,60973.0,0.010113]
[1722649072710,1.0029629,60974.0,60973.0,0.010113]
[1722649072929,1.2489689,60974.0,60973.0,0.010113]
[1722649073143,1.0029629,60974.0,60973.0,0.010113]
[1722649073337,0.59949766,60974.0,60973.0,0.010113]
[1722649073535,0.43719766,60974.0,60973.0,0.010113]
[1722649073738,0.58320366,60974.0,60973.0,0.010113]
[1722649073954,0.82920966,60974.0,60973.0,0.010113]
[1722649074901,1.61284539,60974.0,60973.0,0.010113]
[1722649075067,1.79117763,60974.0,60973.0,0.0092]
[1722649075300,1.79117763,60974.0,60965.0,0.0121129]
[1722649075301,0.617095,60966.0,60965.0,0.0121129]
[1722649075502,1.43682707,60966.0,60965.0,0.0121129]
[1722649075706,1.44408568,60966.0,60965.0,0.0121129]
[1722649076082,1.63451422,60966.0,60965.0,0.0121129]
[1722649076286,1.71012368,60966.0,60965.0,0.0121129]
[1722649076484,1.88055743,60966.0,60965.0,0.0121129]
[1722649076682,2.13621145,60966.0,60965.0,0.0121129]
[1722649076916,2.04135233,60966.0,60965.0,0.0121129]
[1722649077272,0.371148,60951.0,60950.0,0.00025]
[1722649077484,0.6779346,60951.0,60950.0,0.00025]
[1722649077671,0.43186423,60951.0,60950.0,0.00025]
[1722649077925,0.24063407,60951.0,60950.0,0.00025]
[1722649078269,0.24063407,60951.0,60950.0,0.15770924]
[1722649078270,0.17045291,60951.0,60950.0,0.15770924]
[1722649078467,0.002,60954.0,60950.0,0.15770924]
[1722649078880,0.002,60951.0,60950.0,0.15770924]
[1722649079299,0.002,60951.0,60950.0,0.00025]
[1722649080118,0.002,60943.0,60939.0,0.07365]
[1722649080318,0.002,60943.0,60940.0,0.15745924]
[1722649080553,0.002,60940.0,60939.0,0.07365]
[1722649081417,0.002,60940.0,60937.0,0.0653]
[1722649081418,0.002,60938.0,60937.0,0.0653]
[1722649081604,0.002,60938.0,60933.0,0.00922]
[1722649081605,0.002,60935.0,60933.0,0.00922]
[1722649082960,0.002,60942.0,60934.0,0.17113014]
[1722649083147,0.002,60945.0,60940.0,0.0784]
[1722649083281,0.246057,60962.0,60940.0,0.0784]
[1722649083282,0.002,60949.0,60941.0,0.16074089]
[1722649083485,0.002,60949.0,60943.0,0.07875194]
[1722649083683,0.002,60955.0,60944.0,0.16074052]
[1722649083930,0.002,60955.0,60945.0,0.07875194]
[1722649084105,0.47451164,60963.0,60947.0,0.0784]
[1722649084304,0.47451164,60963.0,60952.0,0.07875194]
[1722649084562,0.47251164,60963.0,60953.0,0.16074006]
[1722649084761,0.002,60964.0,60953.0,0.16074006]
[1722649085313,0.002,60959.0,60954.0,0.00328082]
[1722649085517,0.002,60959.0,60948.0,0.04916069]
[1722649085716,0.002,60959.0,60947.0,0.0784]
[1722649085895,0.002,60940.0,60939.0,0.066213]
[1722649086213,0.002,60944.0,60939.0,0.22367224]
[1722649086414,0.002,60940.0,60939.0,0.22367224]
[1722649086624,0.002,60940.0,60939.0,0.000913]
[1722649087198,0.125071,60940.0,60939.0,0.000913]
[1722649087400,0.17245532,60940.0,60939.0,0.000913]
[1722649087575,0.0052664,60940.0,60939.0,0.000913]
[1722649087807,0.002,60940.0,60939.0,0.000913]
[1722649088868,0.17245048,60940.0,60939.0,0.000913]
[1722649089066,0.24063552,60940.0,60939.0,0.000913]
[1722649089260,0.43939904,60940.0,60939.0,0.000913]
[1722649089503,0.37701993,60940.0,60939.0,0.000913]
[1722649090004,0.50009093,60940.0,60939.0,0.000913]
[1722649090412,0.74623393,60940.0,60939.0,0.000913]
[1722649090534,0.50009093,60940.0,60939.0,0.000913]
[1722649090738,0.99237693,60940.0,60939.0,0.000913]
[1722649090976,1.23851993,60940.0,60939.0,0.000913]
[1722649091221,1.4942386,60940.0,60939.0,0.000913]
[1722649091437,1.2710956,60940.0,60939.0,0.000913]
[1722649091823,1.5172386,60940.0,60939.0,0.000913]
[1722649092035,1.2710956,60940.0,60939.0,0.000913]
[1722649092176,2.09226201,60940.0,60939.0,0.000913]
[1722649092377,2.09226201,60940.0,60934.0,0.0136709]
[1722649092378,0.647407,60935.0,60934.0,0.0136709]
[1722649092700,2.19042459,60935.0,60934.0,0.0136709]
[1722649092932,2.82635059,60935.0,60934.0,0.0136709]
[1722649093139,2.82635059,60935.0,60920.0,0.00922]
[1722649093140,0.73145,60921.0,60920.0,0.00922]
[1722649093357,1.94691539,60921.0,60920.0,0.00922]
[1722649093511,2.19317677,60921.0,60920.0,0.00922]
[1722649093712,2.52557222,60921.0,60920.0,0.00922]
[1722649093969,2.66636058,60921.0,60920.0,0.00922]
[1722649094172,2.57760864,60921.0,60920.0,0.00922]
[1722649094335,2.28060028,60921.0,60920.0,0.00922]
[1722649094499,2.44218458,60921.0,60920.0,0.00922]
[1722649094699,2.5468222,60921.0,60920.0,0.00922]
[1722649094901,2.59041889,60921.0,60920.0,0.00922]
[1722649095102,2.11960423,60921.0,60920.0,0.00922]
[1722649095305,2.28601482,60921.0,60920.0,0.00922]
[1722649095506,1.42450387,60921.0,60920.0,0.00922]
[1722649095738,0.22982977,60921.0,60920.0,0.00922]
[1722649095939,0.31223827,60921.0,60920.0,0.00922]
[1722649096192,0.37718784,60921.0,60920.0,0.00922]
[1722649096385,0.37717183,60921.0,60920.0,0.00922]